bitfinex/quotes_BTCUSD_20251031
["timestamp","ask_amount","ask_price","bid_price","bid_amount"]
[1761922961757,1.00108904,110740.0,110730.0,0.0274]
[1761922962438,0.00247982,110740.0,110730.0,0.20801952]
[1761922962646,0.00247982,110740.0,110730.0,0.20889609]
[1761922962876,0.00047982,110740.0,110730.0,0.18289609]
[1761922963094,0.00047982,110740.0,110730.0,0.18189609]
[1761922963311,0.00247982,110740.0,110730.0,0.20289609]
[1761922963532,0.00247982,110740.0,110730.0,0.20389609]
[1761922963744,0.00047982,110740.0,110730.0,0.18189609]
[1761922963956,0.00247982,110740.0,110730.0,0.20689609]
[1761922964173,0.00247982,110740.0,110730.0,0.02627657]
[1761922964174,0.18308303,110740.0,110730.0,0.02627657]
[1761922964385,0.18308303,110740.0,110730.0,0.02527657]
[1761922964604,0.18108303,110740.0,110730.0,0.00327657]
[1761922964808,0.18308303,110740.0,110730.0,0.02927657]
[1761922965059,0.00247982,110740.0,110730.0,0.20989609]
[1761922966999,0.18308303,110740.0,110730.0,0.20989609]
[1761922967209,0.00247982,110740.0,110730.0,0.20989609]
[1761922967416,0.18308303,110740.0,110730.0,0.20989609]
[1761922967659,0.18308303,110740.0,110730.0,0.02927657]
[1761922968267,0.00247982,110740.0,110730.0,0.20989609]
[1761922968500,0.18308303,110740.0,110730.0,0.02927657]
[1761922968709,0.18308303,110740.0,110730.0,0.20989609]
[1761922969022,0.00247982,110740.0,110730.0,0.20989609]
[1761922969470,0.00247982,110740.0,110730.0,0.32110609]
[1761922970639,0.00247982,110740.0,110730.0,0.41250609]
[1761922970863,0.00247982,110740.0,110730.0,0.20989609]
[1761922971082,0.00243467,110740.0,110730.0,0.20989609]
[1761922972390,0.18303788,110740.0,110730.0,0.20989609]
[1761922972601,0.00243467,110740.0,110730.0,0.20989609]
[1761922972821,0.18303788,110740.0,110730.0,0.20989609]
[1761922973215,0.18303788,110740.0,110730.0,0.02927657]
[1761922973642,0.18303788,110740.0,110730.0,0.20989609]
[1761922973861,0.00243467,110740.0,110730.0,0.20989609]
[1761922974078,0.00243467,110740.0,110730.0,0.32110609]
[1761922974975,0.00243467,110740.0,110730.0,0.41250609]
[1761922975401,0.00243467,110740.0,110730.0,0.32110609]
[1761922975554,0.18058714,110750.0,110730.0,0.32110609]
[1761922975763,0.18058714,110750.0,110740.0,0.00065737]
[1761922976679,0.18929153,110760.0,110740.0,0.18126058]
[1761922976887,0.002,110750.0,110740.0,0.18060321]
[1761922977084,0.1825869,110750.0,110740.0,0.18060321]
[1761922977330,0.66729754,110760.0,110740.0,0.18060321]
[1761922977545,0.66729754,110760.0,110740.0,0.18160321]
[1761922977947,0.1805869,110750.0,110740.0,0.18160321]
[1761922978475,0.1805869,110750.0,110740.0,0.001]
[1761922978685,0.1825869,110750.0,110740.0,0.026]
[1761922978895,0.1825869,110750.0,110740.0,0.025]
[1761922979318,0.1825869,110750.0,110740.0,0.026]
[1761922979464,0.66059291,110750.0,110740.0,0.025]
[1761922979685,0.66059291,110750.0,110740.0,0.026]
[1761922979890,0.1825869,110750.0,110740.0,0.026]
[1761922980145,0.66059291,110750.0,110740.0,0.026]
[1761922980773,1.12176363,110750.0,110740.0,0.026]
[1761922981185,1.22683362,110750.0,110740.0,0.026]
[1761922981403,1.27191319,110750.0,110740.0,0.026]
[1761922981614,1.27191319,110750.0,110740.0,0.03435277]
[1761922981824,1.26991319,110750.0,110740.0,0.00935277]
[1761922982221,0.22678548,110740.0,110730.0,0.00054399]
[1761922982365,0.7946105,110740.0,110730.0,0.00054399]
[1761922982570,0.7946105,110740.0,110730.0,0.00142056]
[1761922983021,1.2296805,110740.0,110730.0,0.00142056]
[1761922983222,3.70768651,110740.0,110730.0,0.00242056]
[1761922983445,3.25638692,110740.0,110730.0,0.00242056]
[1761922983669,0.52066847,110700.0,110690.0,0.0290429]
[1761922983862,0.99867448,110700.0,110690.0,0.02952272]
[1761922984463,1.06022335,110700.0,110690.0,0.02952272]
[1761922984879,1.19199976,110700.0,110690.0,0.02952272]
[1761922985280,1.18199977,110700.0,110690.0,0.02952272]
[1761922985495,1.19199976,110700.0,110690.0,0.03052272]
[1761922985700,1.19199976,110700.0,110690.0,0.02952272]
[1761922985939,0.68862716,110700.0,110690.0,0.02952272]
[1761922986157,1.04685675,110700.0,110690.0,0.05552272]
[1761922986380,1.04685675,110700.0,110690.0,0.05452272]
[1761922986712,1.07156317,110700.0,110690.0,0.02952272]
[1761922986840,1.14238471,110700.0,110690.0,0.05252272]
[1761922987042,0.65437871,110700.0,110690.0,0.05252272]
[1761922987243,1.13238472,110700.0,110690.0,0.05252272]
[1761922987462,0.62767229,110700.0,110690.0,0.05252272]
[1761922987686,1.1056783,110700.0,110690.0,0.05252272]
[1761922988163,1.11567829,110700.0,110690.0,0.05252272]
[1761922988372,1.2054973,110700.0,110690.0,0.05252272]
[1761922988577,1.19549731,110700.0,110690.0,0.05252272]
[1761922989020,1.22220373,110700.0,110690.0,0.05252272]
[1761922989240,1.23220372,110700.0,110690.0,0.05252272]
[1761922989455,1.23220372,110700.0,110690.0,0.05339977]
[1761922990089,1.14238471,110700.0,110690.0,0.05339977]
[1761922990279,1.13238472,110700.0,110690.0,0.05339977]
[1761922990563,0.72949602,110700.0,110690.0,0.05339977]
[1761922990787,1.06949602,110700.0,110690.0,0.05339977]
[1761922991226,0.52266847,110700.0,110690.0,0.05339977]
[1761922991430,1.00067448,110700.0,110690.0,0.05339977]
[1761922992066,0.18066675,110710.0,110690.0,0.21108456]
[1761922992067,0.65867276,110710.0,110690.0,0.21108456]
[1761922992281,0.18066409,110720.0,110700.0,0.17966847]
[1761922992503,0.18066409,110720.0,110700.0,0.24219619]
[1761922992716,0.18066409,110720.0,110700.0,0.24153847]
[1761922993149,0.18066409,110720.0,110690.0,0.37290751]
[1761922993150,0.18065215,110710.0,110690.0,0.21924174]
[1761922993369,0.65867448,110700.0,110690.0,0.05352272]
[1761922993587,0.18066847,110700.0,110690.0,0.05352272]
[1761922994684,0.65865816,110710.0,110690.0,0.21020751]
[1761922994896,0.18065215,110710.0,110700.0,0.002]
[1761922995105,0.18065215,110710.0,110700.0,0.20266847]
[1761922995289,0.6596701,110720.0,110700.0,0.20266847]
[1761922995756,0.6586701,110720.0,110700.0,0.18066847]
[1761922996181,0.001,110710.0,110700.0,0.18066847]
[1761922996584,0.6586701,110720.0,110700.0,0.18066847]
[1761922997004,0.18065215,110710.0,110690.0,0.21924174]
[1761922997448,0.18066847,110700.0,110690.0,0.21924174]
[1761922997664,0.18066847,110700.0,110690.0,0.02952272]
[1761922997882,0.65865816,110710.0,110700.0,0.019]
[1761922998094,0.18065215,110710.0,110700.0,0.19966847]
[1761922998340,0.18066409,110720.0,110700.0,0.18132619]
[1761922998567,0.18065215,110710.0,110690.0,0.22124174]
[1761922998761,0.18266847,110700.0,110690.0,0.24324174]
[1761922998963,0.18266847,110700.0,110690.0,0.05652272]
[1761922999163,0.18066847,110700.0,110690.0,0.03252272]
[1761922999370,0.18066847,110700.0,110690.0,0.02952272]
[1761923000467,0.65867448,110700.0,110690.0,0.02952272]
[1761923001157,1.11644595,110700.0,110690.0,0.03252272]
[1761923001374,1.11644595,110700.0,110690.0,0.02952272]
[1761923001585,1.11844595,110700.0,110690.0,0.05352272]
[1761923001793,1.11844595,110700.0,110690.0,0.05552272]
[1761923001993,1.11844595,110700.0,110690.0,0.05352272]
[1761923002213,1.11644595,110700.0,110690.0,0.02952272]
[1761923002436,1.11744595,110700.0,110690.0,0.04652272]
[1761923003270,1.14415237,110700.0,110690.0,0.04652272]
[1761923003495,1.21310269,110700.0,110690.0,0.04652272]
[1761923004156,1.22310268,110700.0,110690.0,0.04652272]
[1761923004582,1.21310269,110700.0,110690.0,0.04652272]
[1761923004801,1.22310268,110700.0,110690.0,0.04739977]
[1761923005881,1.21310269,110700.0,110690.0,0.04739977]
[1761923006165,1.22310268,110700.0,110690.0,0.04739977]
[1761923006943,0.18071744,110670.0,110660.0,0.0004]
[1761923007144,0.65872345,110670.0,110660.0,0.00054402]
[1761923007984,0.68542987,110670.0,110660.0,0.00054402]
[1761923008375,0.65872345,110670.0,110660.0,0.00054402]
[1761923008579,0.65872345,110670.0,110660.0,0.00154402]
[1761923008936,0.99872345,110670.0,110660.0,0.00154402]
[1761923009143,0.52171744,110670.0,110660.0,0.02154402]
[1761923009549,0.99972345,110670.0,110660.0,0.02154402]
[1761923011793,1.00897108,110670.0,110660.0,0.02154402]
[1761923012659,1.00897108,110670.0,110660.0,0.0222021]
[1761923013086,1.07659096,110670.0,110660.0,0.0222021]
[1761923013515,1.16640997,110670.0,110660.0,0.0222021]
[1761923013779,1.07659096,110670.0,110660.0,0.0222021]
[1761923013990,1.07659096,110670.0,110660.0,0.0215841]
[1761923014209,1.07659096,110670.0,110660.0,0.02129637]
[1761923015493,1.33935785,110670.0,110660.0,0.02129637]
[1761923016125,0.59858495,110670.0,110660.0,0.02129637]
[1761923016369,1.33935785,110670.0,110660.0,0.02129637]
[1761923017218,1.33935785,110670.0,110660.0,0.02039137]
[1761923019081,1.42712337,110670.0,110660.0,0.02039137]
[1761923019588,1.37554013,110670.0,110660.0,0.02039137]
[1761923020447,1.37554013,110670.0,110660.0,0.01948637]
[1761923020543,1.37554013,110670.0,110660.0,0.01894417]
[1761923020793,1.40224655,110670.0,110660.0,0.01894417]
[1761923021559,1.37554013,110670.0,110660.0,0.01894417]
[1761923021786,1.46535914,110670.0,110660.0,0.01894417]
[1761923024398,1.33935785,110670.0,110660.0,0.01894417]
[1761923024579,0.59858495,110670.0,110660.0,0.01894417]
[1761923024990,1.33935785,110670.0,110660.0,0.01894417]
[1761923025572,0.59858495,110670.0,110660.0,0.01894417]
[1761923027332,1.33935785,110670.0,110660.0,0.01894417]
[1761923027533,1.42917686,110670.0,110660.0,0.01894417]
[1761923028153,1.46535914,110670.0,110660.0,0.01887793]
[1761923028389,1.42917686,110670.0,110660.0,0.01887793]
[1761923028586,1.46535914,110670.0,110660.0,0.01887793]
[1761923028718,1.37554013,110670.0,110660.0,0.01887793]
[1761923029346,0.63476723,110670.0,110660.0,0.01887793]
[1761923029552,1.37554013,110670.0,110660.0,0.01887793]
[1761923031898,0.63476723,110670.0,110660.0,0.01887793]
[1761923032092,1.37554013,110670.0,110660.0,0.01887793]
[1761923036896,0.63476723,110670.0,110660.0,0.01887793]
[1761923037074,0.59858495,110670.0,110660.0,0.1996117]
[1761923037310,0.001,110670.0,110660.0,0.2612617]
[1761923037664,0.001,110670.0,110660.0,0.3547417]
[1761923038565,0.001,110670.0,110660.0,1.0955146]
[1761923039208,0.001,110670.0,110660.0,1.0975146]
[1761923039661,0.18068497,110690.0,110660.0,1.08833143]
[1761923039875,0.18070112,110680.0,110670.0,0.22574224]
[1761923040090,0.18068497,110690.0,110670.0,0.22574224]
[1761923040304,0.52987964,110700.0,110680.0,0.18070112]
[1761923040530,0.18070112,110680.0,110670.0,0.18973811]
[1761923040762,0.18068511,110690.0,110680.0,0.18069726]
[1761923041452,0.18070112,110680.0,110670.0,0.22575744]
[1761923041651,0.18070112,110680.0,110670.0,0.28740744]
[1761923041857,0.15220015,110690.0,110670.0,0.24236676]
[1761923042107,0.18070112,110680.0,110660.0,0.18977045]
[1761923042527,0.18071744,110670.0,110650.0,0.22578894]
[1761923042740,0.18071744,110670.0,110650.0,0.225933]
[1761923042958,0.18071744,110670.0,110650.0,0.287583]
[1761923043174,0.18073377,110660.0,110650.0,0.287583]
[1761923043363,0.18073377,110660.0,110650.0,0.18089417]
[1761923044086,0.18073377,110660.0,110650.0,0.18289417]
[1761923044299,0.18071744,110670.0,110650.0,0.19289417]
[1761923044513,0.18071744,110670.0,110650.0,0.29958417]
[1761923044734,0.18073377,110660.0,110650.0,0.28958417]
[1761923045167,0.18073377,110660.0,110650.0,0.28758417]
[1761923045387,0.18073377,110660.0,110650.0,0.10683406]
[1761923045614,0.18173377,110660.0,110650.0,0.01702158]
[1761923046275,0.92250667,110660.0,110650.0,0.01702158]
[1761923046480,1.26250667,110660.0,110650.0,0.01702158]
[1761923046693,1.26150667,110660.0,110650.0,0.00402158]
[1761923046907,1.26150667,110660.0,110650.0,0.00102158]
[1761923047113,1.26150667,110660.0,110650.0,0.01202158]
[1761923047563,0.52073377,110660.0,110650.0,0.00202158]
[1761923047774,0.52073377,110660.0,110650.0,0.00802158]
[1761923048442,1.26150667,110660.0,110650.0,0.00702158]
[1761923048660,1.26150667,110660.0,110650.0,0.00802158]
[1761923049931,0.52073377,110660.0,110650.0,0.00802158]
[1761923050146,1.26150667,110660.0,110650.0,0.00802158]
[1761923050363,0.52073377,110660.0,110650.0,0.00802158]
[1761923050574,1.26150667,110660.0,110650.0,0.00802158]
[1761923051473,1.29768895,110660.0,110650.0,0.00802158]
[1761923052820,3.55378894,110660.0,110650.0,0.00802158]
[1761923054141,1.55378894,110660.0,110650.0,0.00802158]
[1761923054358,1.55378894,110660.0,110650.0,0.00102158]
[1761923054803,1.55578894,110660.0,110650.0,0.00102158]
[1761923055033,1.61307197,110660.0,110650.0,0.00102158]
[1761923055245,1.61507197,110660.0,110650.0,0.00102158]
[1761923055459,1.62507196,110660.0,110650.0,0.00102158]
[1761923055673,1.61507197,110660.0,110650.0,0.00102158]
[1761923055890,1.61407197,110660.0,110650.0,0.00102158]
[1761923056126,0.88129906,110660.0,110650.0,0.00102158]
[1761923056365,1.62207196,110660.0,110650.0,0.00502158]
[1761923056790,1.71714196,110660.0,110650.0,0.00502158]
[1761923057220,0.96636907,110660.0,110650.0,0.00502158]
[1761923057461,1.70714197,110660.0,110650.0,0.00502158]
[1761923057689,1.63885895,110660.0,110650.0,0.00502158]
[1761923057899,1.64885894,110660.0,110650.0,0.00502158]
[1761923058134,1.63885895,110660.0,110650.0,0.00502158]
[1761923059450,1.63885895,110660.0,110650.0,0.00102158]
[1761923060894,1.63985895,110660.0,110650.0,0.00102158]
[1761923061110,1.72967796,110660.0,110650.0,0.00102158]
[1761923061326,1.72967796,110660.0,110650.0,0.00202158]
[1761923061760,1.63460796,110660.0,110650.0,0.00202158]
[1761923065115,1.54478895,110660.0,110650.0,0.00202158]
[1761923066214,0.80401605,110660.0,110650.0,0.00202158]
[1761923066430,1.54478895,110660.0,110650.0,0.00202158]
[1761923072794,0.80401605,110660.0,110650.0,0.00202158]
[1761923073015,0.18173377,110660.0,110650.0,0.00202158]
[1761923073679,0.001,110660.0,110650.0,0.18277169]
[1761923073939,0.18173377,110660.0,110650.0,0.29279169]
[1761923074193,0.001,110660.0,110650.0,0.29279169]
[1761923074627,0.18071744,110670.0,110650.0,0.29179169]
[1761923074830,0.18071744,110670.0,110660.0,0.18073377]
[1761923075037,1.24905569,110680.0,110660.0,0.18139185]
[1761923075307,0.52071744,110670.0,110660.0,0.24179377]
[1761923075519,0.52071744,110670.0,110660.0,0.18073377]
[1761923075730,0.50828279,110680.0,110660.0,0.24179377]
[1761923075930,0.18071744,110670.0,110660.0,0.24179377]
[1761923076155,0.18071744,110670.0,110660.0,0.18073377]
[1761923076354,0.18071744,110670.0,110660.0,0.24179377]
[1761923076573,0.42680112,110680.0,110670.0,0.18071744]
[1761923076795,0.15220015,110690.0,110670.0,0.38523744]
[1761923077000,0.18070112,110680.0,110670.0,0.29073744]
[1761923077409,0.18070112,110680.0,110660.0,0.18977045]
[1761923077632,0.001,110680.0,110670.0,0.24177744]
[1761923077861,0.63075695,110690.0,110670.0,0.29173744]
[1761923078080,0.18070112,110680.0,110670.0,0.29173744]
[1761923078284,0.18070112,110680.0,110670.0,0.29373744]
[1761923078503,0.63075695,110690.0,110670.0,0.29373744]
[1761923079162,0.18070112,110680.0,110670.0,0.29273744]
[1761923079377,0.18070112,110680.0,110670.0,0.11202]
[1761923079578,0.18070112,110680.0,110670.0,0.29873744]
[1761923080018,0.15220015,110690.0,110670.0,0.29873744]
[1761923080222,0.18070112,110680.0,110670.0,0.29873744]
[1761923080571,0.18070112,110680.0,110670.0,0.29673744]
[1761923080978,0.18070112,110680.0,110670.0,0.29173744]
[1761923081188,0.18070112,110680.0,110670.0,0.11002]
[1761923081401,0.18071744,110670.0,110650.0,0.23889167]
[1761923081635,0.18071744,110670.0,110650.0,0.33339167]
[1761923081837,0.18071744,110670.0,110660.0,0.18073377]
[1761923082463,0.18071744,110670.0,110650.0,0.23889167]
[1761923082679,0.18073377,110660.0,110650.0,0.30258167]
[1761923082900,0.18071744,110670.0,110650.0,0.40065167]
[1761923083108,0.18071744,110670.0,110660.0,0.008]
[1761923083534,0.18071744,110670.0,110660.0,0.18073377]
[1761923084063,0.18071744,110670.0,110660.0,0.002]
[1761923084290,0.18071744,110670.0,110660.0,0.24242377]
[1761923084495,0.18071744,110670.0,110660.0,0.24342377]
[1761923085519,0.18071744,110670.0,110660.0,0.06869]
[1761923085747,0.18071744,110670.0,110660.0,0.24942377]
[1761923086455,0.18071744,110670.0,110660.0,0.06869]
[1761923086867,0.18071744,110670.0,110660.0,0.06934808]
[1761923087077,0.18071744,110670.0,110660.0,0.25008185]
[1761923087291,0.18071744,110670.0,110660.0,0.06934808]
[1761923087459,0.18071744,110670.0,110660.0,0.25008185]
[1761923087671,0.18070112,110680.0,110660.0,0.25008185]
[1761923087873,0.18070112,110680.0,110670.0,0.18071744]
[1761923088122,0.18070112,110680.0,110670.0,0.06169]
[1761923088502,0.18070112,110680.0,110670.0,0.24240744]
[1761923088785,0.49220015,110690.0,110670.0,0.28913744]
[1761923089006,0.97075695,110690.0,110670.0,0.28913744]
[1761923089274,0.18070112,110680.0,110670.0,0.28913744]
[1761923090355,0.18070112,110680.0,110670.0,0.29313744]
[1761923091245,0.18070112,110680.0,110670.0,0.39120744]
[1761923091473,0.18070112,110680.0,110670.0,0.11242]
[1761923091695,0.18070112,110680.0,110670.0,0.004]
[1761923091929,0.65925792,110680.0,110670.0,0.004]
[1761923093008,0.99925792,110680.0,110670.0,0.004]
[1761923093228,0.99925792,110680.0,110670.0,0.00443868]
[1761923093703,1.513997,110680.0,110670.0,0.00443868]
[1761923093918,3.84991601,110680.0,110670.0,0.00443868]
[1761923094801,3.91704846,110680.0,110670.0,0.00343868]
[1761923095011,3.91704846,110680.0,110670.0,0.00043868]
[1761923095442,3.91704846,110680.0,110670.0,0.00143868]
[1761923095883,3.94375488,110680.0,110670.0,0.00043868]
[1761923096280,3.94675488,110680.0,110670.0,0.00043868]
[1761923096519,3.94875488,110680.0,110670.0,0.00043868]
[1761923096734,3.92204846,110680.0,110670.0,0.00043868]
[1761923096988,1.92204846,110680.0,110670.0,0.00043868]
[1761923098128,3.92204846,110680.0,110670.0,0.00043868]
[1761923098770,3.92304846,110680.0,110670.0,0.00043868]
[1761923098976,3.92204846,110680.0,110670.0,0.00043868]
[1761923099460,1.92204846,110680.0,110670.0,0.00043868]
[1761923100096,1.83222945,110680.0,110670.0,0.00043868]
[1761923100303,0.87511585,110680.0,110670.0,0.00043868]
[1761923100501,0.97749037,110680.0,110670.0,0.00043868]
[1761923100986,0.18570112,110680.0,110670.0,0.00043868]
[1761923101422,0.18270112,110680.0,110670.0,0.00043868]
[1761923101946,0.18170112,110680.0,110670.0,0.00043868]
[1761923102158,0.66025792,110680.0,110670.0,0.00143868]
[1761923102372,0.65925792,110680.0,110670.0,0.00143868]
[1761923102527,0.18070112,110680.0,110670.0,0.06612868]
[1761923103107,0.15220015,110690.0,110670.0,0.34491612]
[1761923103363,0.15220015,110690.0,110680.0,0.24239112]
[1761923103364,0.18068479,110690.0,110680.0,0.24239112]
[1761923103574,0.18068479,110690.0,110680.0,0.34068044]
[1761923103777,0.18068479,110690.0,110680.0,0.00021932]
[1761923104189,0.99924159,110690.0,110680.0,0.00021932]
[1761923105210,1.03542387,110690.0,110680.0,0.00121932]
[1761923105415,1.12524288,110690.0,110680.0,0.00121932]
[1761923105615,1.12524288,110690.0,110680.0,0.00221932]
[1761923105811,1.03542387,110690.0,110680.0,0.00221932]
[1761923106530,1.03542387,110690.0,110680.0,0.00121932]
[1761923113620,0.99924159,110690.0,110680.0,0.00121932]
[1761923113943,0.52068479,110690.0,110680.0,0.00121932]
[1761923114169,0.45025832,110700.0,110680.0,0.18192044]
[1761923114368,0.18068479,110690.0,110680.0,0.24365044]
[1761923114941,0.18068479,110690.0,110680.0,0.00021932]
[1761923115383,0.18068479,110690.0,110680.0,0.00521932]
[1761923115767,0.65924159,110690.0,110680.0,0.00021932]
[1761923116416,0.18068479,110690.0,110680.0,0.18092044]
[1761923116751,0.52998928,110700.0,110680.0,0.25065044]
[1761923116954,0.52998928,110700.0,110680.0,0.34814044]
[1761923117147,0.34932069,110700.0,110690.0,0.18068479]
[1761923117352,0.18998916,110700.0,110690.0,0.18068479]
[1761923117558,0.18068479,110690.0,110680.0,0.18792044]
[1761923117768,0.18068479,110690.0,110680.0,0.06194932]
[1761923117958,0.18068479,110690.0,110680.0,0.24265044]
[1761923118103,0.18998916,110700.0,110680.0,0.24465044]
[1761923118319,0.19046887,110700.0,110690.0,0.18068479]
[1761923118739,0.00047971,110700.0,110690.0,0.24241479]
[1761923118948,0.18114818,110700.0,110690.0,0.24241479]
[1761923119276,0.18114818,110700.0,110690.0,0.06273]
[1761923119478,0.18114818,110700.0,110690.0,0.001]
[1761923119848,0.65970498,110700.0,110690.0,0.001]
[1761923121117,0.18068479,110690.0,110680.0,0.18092021]
[1761923121326,0.18068479,110690.0,110680.0,0.00021932]
[1761923121535,0.18068479,110690.0,110680.0,0.18092044]
[1761923121762,0.18068479,110690.0,110680.0,0.00021932]
[1761923121945,0.18068479,110690.0,110680.0,0.18092044]
[1761923122522,0.18068479,110690.0,110680.0,0.00021932]
[1761923122523,0.74328057,110690.0,110680.0,0.00021932]
[1761923122738,0.99924159,110690.0,110680.0,0.00021932]
[1761923122932,0.99924159,110690.0,110680.0,0.00521932]
[1761923123130,1.06790668,110690.0,110680.0,0.00521932]
[1761923124271,1.06790668,110690.0,110680.0,0.00021932]
[1761923124489,0.99924159,110690.0,110680.0,0.00021932]
[1761923124716,0.99924159,110690.0,110680.0,0.00221932]
[1761923125160,0.99924159,110690.0,110680.0,0.00021932]
[1761923126018,1.06768299,110690.0,110680.0,0.00021932]
[1761923126226,0.58912619,110690.0,110680.0,0.00021932]
[1761923126452,1.06768299,110690.0,110680.0,0.00021932]
[1761923127333,1.53459045,110690.0,110680.0,0.00021932]
[1761923127563,1.46782649,110690.0,110680.0,0.00021932]
[1761923128241,1.93416507,110690.0,110680.0,0.00021932]
[1761923128468,3.93416507,110690.0,110680.0,0.00021932]
[1761923128739,0.18078278,110630.0,110620.0,0.22794945]
[1761923128954,0.60202545,110640.0,110630.0,0.18078278]
[1761923129219,0.60202545,110640.0,110630.0,0.23970278]
[1761923129347,0.65962193,110650.0,110630.0,0.32883278]
[1761923129548,0.18075011,110650.0,110640.0,0.23968644]
[1761923129758,0.52073381,110660.0,110650.0,0.18074958]
[1761923129983,0.18073381,110660.0,110650.0,0.28260417]
[1761923130211,0.1807571,110670.0,110650.0,0.28260417]
[1761923130423,0.1807571,110670.0,110650.0,0.37173417]
[1761923130844,0.18073377,110660.0,110650.0,0.10185406]
[1761923130999,0.18073377,110660.0,110650.0,0.00014406]
[1761923131411,0.18073377,110660.0,110650.0,0.18089417]
[1761923131626,0.18073377,110660.0,110650.0,0.24081417]
[1761923132047,0.18073377,110660.0,110650.0,0.06006406]
[1761923132248,0.18073377,110660.0,110650.0,0.23981417]
[1761923132697,0.18073377,110660.0,110650.0,0.00014406]
[1761923132908,0.65960559,110660.0,110650.0,0.00014406]
[1761923133080,0.65960559,110660.0,110650.0,0.00114406]
[1761923133285,1.08364186,110660.0,110650.0,0.00114406]
[1761923133483,1.11982414,110660.0,110650.0,0.00114406]
[1761923133915,1.11982414,110660.0,110650.0,0.00414406]
[1761923134334,1.11982414,110660.0,110650.0,0.00114406]
[1761923134776,1.11982414,110660.0,110650.0,0.00214406]
[1761923135014,1.18736876,110660.0,110650.0,0.00114406]
[1761923135216,0.70849694,110660.0,110650.0,0.00114406]
[1761923135439,1.18736876,110660.0,110650.0,0.00114406]
[1761923135795,1.10333249,110660.0,110650.0,0.00114406]
[1761923138036,0.62446067,110660.0,110650.0,0.00114406]
[1761923138237,1.10333249,110660.0,110650.0,0.00114406]
[1761923138625,0.62446067,110660.0,110650.0,0.00114406]
[1761923138840,1.10333249,110660.0,110650.0,0.00114406]
[1761923139014,1.1931515,110660.0,110650.0,0.00114406]
[1761923139409,1.45527191,110660.0,110650.0,0.00114406]
[1761923140670,1.45527191,110660.0,110650.0,0.00180223]
[1761923140824,1.45527191,110660.0,110650.0,0.00080223]
[1761923141258,1.45727191,110660.0,110650.0,0.00080223]
[1761923141796,1.45827191,110660.0,110650.0,0.00080223]
[1761923143576,1.3684529,110660.0,110650.0,0.00080223]
[1761923146829,0.62746067,110660.0,110650.0,0.00080223]
[1761923147027,1.3684529,110660.0,110650.0,0.00080223]
[1761923147325,0.64163333,110660.0,110650.0,0.00080223]
[1761923147443,1.38262556,110660.0,110650.0,0.00080223]
[1761923147674,1.47244457,110660.0,110650.0,0.00080223]
[1761923148538,1.38262556,110660.0,110650.0,0.00080223]
[1761923149394,1.06215478,110660.0,110650.0,0.00080223]
[1761923149604,1.06015478,110660.0,110650.0,0.00080223]
[1761923150042,3.48167623,110660.0,110650.0,0.00180223]
[1761923150229,3.57149524,110660.0,110650.0,0.00180223]
[1761923150444,3.57149524,110660.0,110650.0,0.00080223]
[1761923150657,0.18078278,110630.0,110620.0,0.00048]
[1761923150864,0.94235216,110630.0,110620.0,0.00048]
[1761923151691,0.97853444,110630.0,110620.0,0.00048]
[1761923151903,1.06835345,110630.0,110620.0,0.00048]
[1761923152117,1.06835345,110630.0,110620.0,0.00148]
[1761923152730,1.06835345,110630.0,110620.0,0.00748]
[1761923153180,1.07775673,110630.0,110620.0,0.00148]
[1761923153378,1.39774396,110630.0,110620.0,0.00148]
[1761923153592,1.4671584,110630.0,110620.0,0.00248]
[1761923153836,1.4671584,110630.0,110620.0,0.00148]
[1761923156519,1.4671584,110630.0,110620.0,0.00048]
[1761923156732,1.4681584,110630.0,110620.0,0.00048]
[1761923156951,1.37833939,110630.0,110620.0,0.00048]
[1761923157149,1.37933939,110630.0,110620.0,0.00048]
[1761923157978,0.53223399,110630.0,110620.0,0.00048]
[1761923158187,1.27374267,110630.0,110620.0,0.00048]
[1761923158995,1.27274267,110630.0,110620.0,0.00048]
[1761923159214,1.27274267,110630.0,110620.0,0.00348]
[1761923159439,0.621053,110630.0,110620.0,0.00348]
[1761923159647,0.53123399,110630.0,110620.0,0.00348]
[1761923159817,1.27274267,110630.0,110620.0,0.00348]
[1761923160421,1.27174267,110630.0,110620.0,0.00348]
[1761923160626,0.53023399,110630.0,110620.0,0.00348]
[1761923160830,0.53023399,110630.0,110620.0,0.00448]
[1761923161028,1.27174267,110630.0,110620.0,0.00448]
[1761923161533,0.93174267,110630.0,110620.0,0.06149843]
[1761923161737,0.19023399,110630.0,110620.0,0.06149843]
[1761923162603,0.19023399,110630.0,110620.0,0.32900756]
[1761923162604,0.18083071,110630.0,110620.0,0.32900756]
[1761923163198,4.793e-05,110630.0,110620.0,0.32900756]
[1761923163805,0.18083071,110630.0,110620.0,0.14820843]
[1761923164218,0.18083071,110630.0,110620.0,0.32900756]
[1761923164477,4.793e-05,110630.0,110620.0,0.32900756]
[1761923165365,4.793e-05,110630.0,110620.0,0.35616458]
[1761923166050,4.793e-05,110630.0,110620.0,0.35316458]
[1761923166279,4.793e-05,110630.0,110620.0,0.36316458]
[1761923167183,0.18083071,110630.0,110620.0,0.09565545]
[1761923167387,0.18083071,110630.0,110620.0,0.27545458]
[1761923167588,4.793e-05,110630.0,110620.0,0.36516458]
[1761923167997,4.793e-05,110630.0,110620.0,0.35516458]
[1761923168443,4.793e-05,110630.0,110620.0,0.35916458]
[1761923168636,4.793e-05,110630.0,110620.0,0.36116458]
[1761923171938,0.15510327,110650.0,110630.0,0.26749278]
[1761923172143,0.18076884,110640.0,110630.0,0.08685413]
[1761923172342,0.18076884,110640.0,110630.0,0.05211413]
[1761923172548,0.18076884,110640.0,110630.0,0.31047691]
[1761923172795,0.18076884,110640.0,110630.0,0.05255305]
[1761923172995,0.18076884,110640.0,110630.0,0.08171039]
[1761923173401,0.18076644,110640.0,110630.0,0.08171039]
[1761923173635,0.18076644,110640.0,110620.0,0.26989908]
[1761923173858,0.19911644,110640.0,110630.0,0.05197]
[1761923174057,0.19911644,110640.0,110630.0,0.08012734]
[1761923174396,0.18076644,110640.0,110630.0,0.25991012]
[1761923174598,0.19911644,110640.0,110630.0,0.08112734]
[1761923174843,0.19911644,110640.0,110630.0,0.08312734]
[1761923175291,0.19911644,110640.0,110630.0,0.08412734]
[1761923175461,0.19911644,110640.0,110630.0,0.26491012]
[1761923175663,0.18076644,110640.0,110630.0,0.34249012]
[1761923175930,0.19911644,110640.0,110630.0,0.08412734]
[1761923177939,0.21746644,110640.0,110630.0,0.03215734]
[1761923178443,0.94062512,110640.0,110630.0,0.03215734]
[1761923178657,0.95836512,110640.0,110630.0,0.03215734]
[1761923178806,0.95836512,110640.0,110630.0,0.005]
[1761923179639,0.95836512,110640.0,110630.0,0.001]
[1761923179873,0.18078278,110630.0,110620.0,0.20858221]
[1761923180096,0.19852278,110630.0,110620.0,0.26239221]
[1761923180330,0.18076644,110640.0,110630.0,0.18078278]
[1761923180561,0.18076644,110640.0,110630.0,0.1356]
[1761923181006,0.19850644,110640.0,110630.0,0.05581]
[1761923181404,0.19850644,110640.0,110630.0,0.05381]
[1761923181607,0.18078278,110630.0,110620.0,0.02778344]